bitfinex-derivatives/quotes_SOLF0:USTF0_20260105
["timestamp","ask_amount","ask_price","bid_price","bid_amount"]
[1767571370108,7.12694771,134.74,134.63,6.6877]
[1767571370304,0.44414771,134.74,134.63,6.6877]
[1767571371003,0.44414771,134.74,134.63,104.0324]
[1767571371199,0.44414771,134.74,134.64,104.0276]
[1767571371405,104.37444771,134.77,134.66,6.6862]
[1767571371600,104.37444771,134.77,134.64,104.0276]
[1767571371601,13.05040375,134.79,134.65,104.0172]
[1767571371805,0.44414771,134.76,134.66,87.78]
[1767571372110,0.44414771,134.75,134.66,87.78]
[1767571372300,0.44414771,134.74,134.66,87.78]
[1767571372612,0.44414771,134.74,134.63,94.4677]
[1767571373014,104.39744771,134.74,134.63,94.4677]
[1767571373417,0.44414771,134.73,134.63,87.78]
[1767571373608,6.6838,134.72,134.6,104.0532]
[1767571373809,0.44414771,134.71,134.61,87.76]
[1767571374612,6.6847,134.7,134.61,94.4487]
[1767571375817,6.6853,134.69,134.61,87.76]
[1767571376811,7.12944771,134.69,134.59,6.6895]
[1767571377216,6.6859,134.68,134.59,6.6895]
[1767571378010,0.44414771,134.68,134.59,104.0662]
[1767571378509,0.44414771,134.68,134.58,87.76]
[1767571378910,0.44414771,134.68,134.59,6.6896]
[1767571380424,0.44414771,134.68,134.58,87.76]
[1767571380620,104.46101292,134.72,134.59,104.0651]
[1767571380919,0.49161292,134.7,134.59,104.0651]
[1767571381120,0.49161292,134.79,134.62,104.0431]
[1767571381319,0.49161292,134.79,134.59,1.48]
[1767571381320,0.49161292,134.82,134.71,103.9703]
[1767571381520,0.49161292,134.82,134.7,191.7382]
[1767571381824,0.49161292,134.85,134.73,103.9573]
[1767571382015,0.49161292,134.85,134.7,87.76]
[1767571382016,103.885,134.83,134.7,89.76]
[1767571382212,6.6796,134.8,134.69,6.6849]
[1767571382420,0.49161292,134.78,134.68,87.76]
[1767571382722,0.49161292,134.75,134.64,87.76]
[1767571383021,103.9531,134.74,134.64,87.76]
[1767571383224,104.45311292,134.73,134.6,104.0552]
[1767571383426,6.6838,134.72,134.62,6.6882]
[1767571383620,87.14,134.76,134.64,104.0262]
[1767571383823,87.63161292,134.76,134.64,104.0262]
[1767571384227,0.49161292,134.76,134.66,6.6861]
[1767571384424,0.49161292,134.79,134.67,104.0044]
[1767571384820,0.49161292,134.79,134.66,191.7502]
[1767571384821,0.49161292,134.77,134.66,87.74]
[1767571385425,6.682,134.75,134.64,94.427]
[1767571385722,0.49161292,134.8,134.66,104.0076]
[1767571385915,0.49161292,134.8,134.68,103.9936]
[1767571386223,104.36921292,134.84,134.69,191.7258]
[1767571386421,0.49161292,134.82,134.72,6.6832]
[1767571386926,0.49161292,134.82,134.73,6.6827]
[1767571387122,0.49161292,134.82,134.71,103.9705]
[1767571387123,0.49161292,134.82,134.7,103.9754]
[1767571387828,0.49161292,134.81,134.69,191.7287]
[1767571388022,0.49161292,134.81,134.69,87.74]
[1767571388222,87.14,134.83,134.71,103.9726]
[1767571388524,104.39031292,134.81,134.69,87.74]
[1767571389026,191.0245,134.83,134.69,87.74]
[1767571389027,6.6781,134.83,134.71,103.9709]
[1767571389225,6.6781,134.83,134.72,87.72]
[1767571390229,6.6781,134.83,134.73,6.6827]
[1767571390627,7.16971292,134.83,134.73,6.6827]
[1767571390930,87.61161292,134.85,134.72,191.6831]
[1767571391127,104.37011292,134.84,134.72,87.72]
[1767571391323,104.37011292,134.84,134.68,87.72]
[1767571391324,0.49161292,134.8,134.68,87.72]
[1767571391516,104.40461292,134.79,134.68,87.72]
[1767571391721,0.49161292,134.81,134.69,103.9872]
[1767571393034,103.9121,134.79,134.68,87.72]
[1767571393233,104.40371292,134.79,134.68,87.72]
[1767571393530,0.49161292,134.82,134.7,103.9805]
[1767571393728,0.49161292,134.81,134.68,191.7136]
[1767571393922,0.49161292,134.79,134.68,87.72]
[1767571394118,6.6818,134.76,134.65,6.6867]
[1767571394429,0.49161292,134.76,134.65,6.6867]
[1767571394927,0.49161292,134.76,134.66,104.0121]
[1767571395130,103.9182,134.79,134.66,104.0121]
[1767571395131,87.59161292,134.79,134.66,104.0121]
[1767571395426,0.49161292,134.78,134.67,104.0039]
[1767571395620,103.904,134.81,134.69,103.9847]
[1767571395621,0.49161292,134.81,134.69,103.9847]
[1767571395822,0.49161292,134.8,134.68,103.9949]
[1767571396129,6.6803,134.79,134.69,6.6847]
[1767571396924,0.49161292,134.8,134.71,6.6837]
[1767571397325,0.49161292,134.8,134.67,104.0039]
[1767571397822,0.49161292,134.78,134.66,104.0121]
[1767571398223,87.59161292,134.81,134.69,103.9888]
[1767571398424,0.49161292,134.8,134.69,87.7]
[1767571399023,0.49161292,134.8,134.69,191.6862]
[1767571399831,6.6788,134.82,134.71,103.9703]
[1767571400137,87.59161292,134.83,134.72,103.9651]
[1767571400336,0.49161292,134.8,134.69,87.7]
[1767571400831,6.6802,134.79,134.7,6.6842]
[1767571401237,0.49161292,134.77,134.64,104.0252]
[1767571401432,6.6817,134.76,134.67,6.6857]
[1767571401736,0.49161292,134.75,134.65,87.7]
[1767571402131,0.49161292,134.73,134.63,6.6878]
[1767571402833,6.6842,134.71,134.61,87.7]
[1767571403426,0.49161292,134.68,134.55,22.29]
[1767571403628,0.49161292,134.68,134.55,104.0931]
[1767571403837,0.49161292,134.68,134.56,87.7]
[1767571404632,0.49161292,134.68,134.57,104.0815]
[1767571405039,0.49161292,134.68,134.56,191.7864]
[1767571405235,0.49161292,134.68,134.58,104.0731]
[1767571405538,0.49161292,134.68,134.56,87.7]
[1767571405736,7.17801292,134.67,134.57,6.6907]
[1767571406038,0.49161292,134.65,134.52,104.1176]
[1767571406248,6.6877,134.64,134.55,6.6917]
[1767571406431,0.49161292,134.65,134.55,104.0955]
[1767571406743,0.49161292,134.68,134.56,104.0863]
[1767571406934,87.12,134.67,134.56,104.0863]
[1767571407131,87.61161292,134.67,134.56,104.0863]
[1767571407644,94.29781292,134.67,134.55,104.0955]
[1767571408540,94.29781292,134.67,134.57,6.6907]
[1767571408748,7.17781292,134.67,134.57,6.6907]
[1767571409041,0.49161292,134.67,134.57,104.0806]
[1767571409244,0.49161292,134.67,134.59,6.6897]
[1767571409745,0.49161292,134.67,134.57,6.6909]
[1767571409940,0.49161292,134.67,134.56,104.0853]
[1767571410149,0.49161292,134.67,134.57,104.0808]
[1767571411051,0.49161292,134.67,134.59,6.6897]
[1767571411847,0.49161292,134.67,134.57,6.6907]
[1767571412052,0.49161292,134.67,134.57,104.0807]
[1767571412442,0.49161292,134.67,134.58,6.6902]
[1767571412643,87.14,134.69,134.58,104.0726]
[1767571412848,94.36711366,134.69,134.59,6.6897]
[1767571413051,0.54191366,134.69,134.59,104.0645]
[1767571413253,0.54191366,134.69,134.58,191.808]
[1767571413745,0.54191366,134.69,134.58,94.4302]
[1767571413945,0.54191366,134.66,134.54,104.1042]
[1767571414146,0.54191366,134.65,134.53,104.1085]
[1767571414345,6.6883,134.63,134.54,6.6921]
[1767571415148,0.54191366,134.61,134.52,94.4334]
[1767571415357,0.54191366,134.61,134.52,87.74]
[1767571415755,0.54191366,134.61,134.53,6.6927]
[1767571416453,87.16,134.63,134.52,191.8573]
[1767571416755,0.53215951,134.62,134.52,87.74]
[1767571417548,6.689,134.61,134.52,94.4331]
[1767571417964,0.53215951,134.62,134.52,87.74]
[1767571418165,0.53215951,134.62,134.53,6.6927]
[1767571418668,0.53215951,134.62,134.52,87.74]
[1767571419267,0.53215951,134.62,134.53,104.1111]
[1767571420465,6.6876,134.64,134.55,6.6916]
[1767571420877,0.53215951,134.64,134.52,87.74]
[1767571421063,93.8672,134.65,134.56,6.6911]
[1767571421367,94.39935951,134.65,134.56,6.6911]
[1767571421971,87.71215951,134.65,134.55,104.0923]
[1767571422270,0.53215951,134.63,134.51,104.1261]
[1767571422566,7.22055951,134.63,134.54,6.6923]
[1767571422765,0.53215951,134.63,134.52,104.1172]
[1767571423065,0.53215951,134.66,134.54,104.0988]
[1767571423373,87.71215951,134.66,134.54,104.0988]
[1767571423574,0.53215951,134.65,134.54,104.0988]
[1767571424269,0.53215951,134.65,134.55,191.877]
[1767571425069,87.18,134.67,134.56,104.0888]
[1767571425259,0.53215951,134.66,134.59,6.6897]
[1767571426079,0.53215951,134.66,134.56,104.0888]
[1767571427668,0.53215951,134.66,134.58,6.6903]
[1767571429372,0.53215951,134.69,134.59,104.0634]
[1767571429881,0.53215951,134.69,134.62,6.6882]
[1767571431074,0.53215951,134.69,134.6,6.6891]
[1767571431263,7.21735951,134.69,134.6,6.6891]
[1767571433979,94.39735951,134.69,134.6,6.6891]
[1767571435074,7.21735951,134.69,134.6,6.6891]
[1767571435874,6.6856,134.68,134.6,6.6891]
[1767571436378,0.53215951,134.69,134.61,6.6888]
[1767571436580,0.53215951,134.69,134.59,104.061]
[1767571436971,0.53215951,134.75,134.65,104.0185]
[1767571437177,0.53215951,134.75,134.64,104.0277]
[1767571437682,0.53215951,134.75,134.66,104.0122]
[1767571437881,0.53215951,134.75,134.64,104.0277]
[1767571438272,0.53215951,134.75,134.67,6.6858]
[1767571438875,7.21305951,134.78,134.67,104.0013]
[1767571439282,7.21305951,134.78,134.65,104.0164]
[1767571439676,6.6812,134.77,134.65,104.0164]
[1767571440076,0.53215951,134.78,134.67,104.0018]
[1767571440374,7.21275951,134.78,134.69,6.6845]
[1767571440573,0.54457262,134.77,134.64,104.0277]
[1767571440774,0.54457262,134.73,134.65,6.6866]
[1767571440973,0.54457262,134.73,134.62,104.0388]
[1767571441374,87.70457262,134.73,134.6,104.0555]
[1767571441576,87.70457262,134.73,134.61,87.76]
[1767571442680,6.6842,134.71,134.62,6.6881]
[1767571442882,0.54457262,134.7,134.62,6.6881]
[1767571443071,22.83457262,134.73,134.58,104.0686]
[1767571443277,0.54457262,134.71,134.6,104.055]
[1767571443872,0.54457262,134.71,134.58,104.0686]
[1767571444370,0.54457262,134.71,134.6,104.0575]
[1767571445579,0.54457262,134.71,134.62,6.6883]
[1767571446087,87.16,134.73,134.62,104.0429]
[1767571446483,0.54457262,134.76,134.66,104.0111]
[1767571446690,0.54457262,134.79,134.67,104.0024]
[1767571446888,0.54457262,134.79,134.68,103.9963]
[1767571447189,87.16,134.81,134.71,103.9704]
[1767571447495,87.16,134.81,134.72,103.9659]
[1767571447681,0.54457262,134.8,134.7,103.9812]
[1767571447879,0.54457262,134.8,134.67,104.0024]
[1767571448186,0.54457262,134.8,134.69,103.9875]
[1767571448388,0.54457262,134.83,134.71,103.9727]
[1767571448585,0.54457262,134.81,134.68,103.9962]
[1767571448982,0.54457262,134.78,134.68,6.6852]
[1767571449576,0.54457262,134.76,134.63,104.0312]
[1767571449888,87.70457262,134.75,134.63,191.7712]
[1767571450085,0.54457262,134.73,134.64,6.6872]
[1767571450389,0.54457262,134.73,134.63,87.74]
[1767571451386,87.70457262,134.76,134.64,104.0268]
[1767571451683,87.70457262,134.79,134.66,104.0118]
[1767571451884,0.54457262,134.78,134.66,104.0118]
[1767571452682,0.54457262,134.78,134.68,103.9904]
[1767571452988,0.54457262,134.78,134.68,191.7304]
[1767571453189,0.54457262,134.78,134.7,6.6841]
[1767571453589,0.54457262,134.76,134.63,104.0305]
[1767571453890,7.22687262,134.75,134.64,6.6872]
[1767571454086,0.54457262,134.75,134.64,6.6872]
[1767571454683,6.6833,134.73,134.63,87.74]
[1767571455485,7.22787262,134.73,134.63,87.74]
[1767571455886,6.6823,134.75,134.65,6.6867]
[1767571456089,87.14,134.75,134.65,104.0183]
[1767571456486,0.54457262,134.74,134.63,191.7727]
[1767571457491,0.54457262,134.74,134.64,104.0271]
[1767571457688,0.54457262,134.74,134.63,87.74]
[1767571458593,0.54457262,134.74,134.65,6.6867]
[1767571459488,87.14,134.75,134.62,104.0404]
[1767571459489,0.54457262,134.75,134.62,104.0404]
[1767571460595,7.22747262,134.74,134.64,6.6871]
[1767571460797,0.54457262,134.74,134.64,6.6871]
[1767571461095,0.54457262,134.74,134.57,104.0812]
[1767571461096,0.54457262,134.68,134.57,104.0812]
[1767571461295,87.68457262,134.68,134.6,6.6891]
[1767571461496,87.14,134.7,134.6,104.0582]
[1767571461992,87.14,134.7,134.59,191.8033]
[1767571461993,87.14,134.7,134.62,6.6883]
[1767571462596,87.14,134.7,134.6,6.6891]
[1767571462795,87.14,134.7,134.59,191.8033]
[1767571463200,87.16,134.7,134.59,191.8033]
[1767571463900,93.8447,134.7,134.61,6.6888]
[1767571464492,7.23067262,134.67,134.58,6.6903]
[1767571464994,7.23067262,134.67,134.56,87.74]
[1767571464995,0.54457262,134.67,134.56,87.74]
[1767571466195,0.54457262,134.67,134.57,6.6907]
[1767571466592,0.54457262,134.66,134.56,87.74]
[1767571466800,0.54457262,134.63,134.52,104.1203]
[1767571467002,0.54457262,134.66,134.54,104.1018]
[1767571467203,87.70457262,134.65,134.54,104.1018]
[1767571467404,0.54457262,134.65,134.56,6.6911]
[1767571467607,87.70457262,134.65,134.56,6.6911]
[1767571467996,0.54457262,134.64,134.54,6.6922]
[1767571468900,0.54457262,134.67,134.56,104.0876]
[1767571469093,87.18,134.66,134.56,104.0876]
[1767571469293,0.54457262,134.65,134.53,104.1097]
[1767571470102,0.54457262,134.64,134.55,6.6918]
[1767571470705,0.58863539,134.67,134.55,104.0927]
[1767571470898,87.76863539,134.66,134.55,104.0927]
[1767571471403,0.58863539,134.65,134.55,6.6917]
[1767571471602,87.76863539,134.65,134.55,6.6917]
[1767571471798,0.58863539,134.65,134.56,104.0882]
[1767571472003,87.18,134.66,134.56,104.0882]
[1767571472205,0.58863539,134.67,134.58,6.6902]
[1767571472399,87.76863539,134.67,134.58,6.6902]
[1767571472800,87.76863539,134.67,134.59,6.6897]
[1767571474309,0.58863539,134.66,134.57,6.6907]
[1767571474909,87.76863539,134.66,134.57,6.6907]
[1767571476108,0.57343887,134.65,134.53,104.1123]
[1767571476515,0.57343887,134.68,134.57,104.0807]
[1767571476708,87.2,134.67,134.57,104.0807]
[1767571476909,87.2,134.67,134.56,6.6911]
[1767571477109,0.57343887,134.66,134.55,3.74801747]
[1767571477614,6.6871,134.65,134.55,3.74801747]
[1767571478416,6.6877,134.64,134.55,3.74801747]
[1767571478612,104.61033887,134.63,134.51,28.9839]
[1767571478818,104.61993887,134.62,134.5,21.55887501]
[1767571479111,6.6901,134.59,134.5,21.55887501]
[1767571479314,104.0589,134.6,134.5,17.81085754]
[1767571479613,104.62473887,134.61,134.5,17.81085754]
[1767571479821,104.0615,134.6,134.5,17.81085754]
[1767571480016,104.63493887,134.6,134.5,17.81085754]
[1767571480517,104.0748,134.58,134.5,17.81085754]
[1767571481018,6.6918,134.56,134.5,17.81085754]
[1767571481724,104.66683887,134.56,134.45,6.6966]
[1767571481907,104.1058,134.54,134.42,87.78]
[1767571482616,6.6936,134.52,134.43,6.6976]
[1767571483012,0.57343887,134.52,134.42,87.78]
[1767571483220,0.57343887,134.49,134.37,104.2363]
[1767571483405,0.57343887,134.49,134.36,195.77131747]
[1767571483809,6.6958,134.48,134.38,6.6999]
[1767571484419,6.6958,134.48,134.36,87.78]
[1767571484420,104.73303887,134.47,134.36,87.78]
[1767571484715,104.1979,134.43,134.35,1.26477526]
[1767571484916,6.7,134.39,134.35,7.526e-05]
[1767571485116,0.57343887,134.38,134.26,87.8]
[1767571485720,0.57343887,134.36,134.26,87.8]
[1767571485915,0.57343887,134.36,134.22,104.3488]
[1767571486108,0.57343887,134.34,134.22,6.7083]
[1767571486518,0.57343887,134.32,134.2,219.82923095]
[1767571486925,87.24,134.33,134.23,104.3415]
[1767571487120,87.24,134.33,134.22,104.3489]
[1767571487312,87.81343887,134.33,134.22,104.3489]
[1767571487512,87.81343887,134.33,134.21,104.355]
[1767571487728,87.24,134.33,134.23,104.3416]
[1767571488023,87.24,134.33,134.22,104.3501]
[1767571488223,87.24,134.33,134.24,104.335]
[1767571488611,0.57343887,134.36,134.27,104.3138]
[1767571488816,0.57343887,134.36,134.27,6.7059]
[1767571489027,0.57343887,134.36,134.27,111.017]
[1767571489624,0.57343887,134.36,134.27,6.7059]
[1767571490019,0.57343887,134.36,134.25,192.1663]
[1767571490226,0.57343887,134.39,134.27,104.3114]
[1767571490417,87.3,134.37,134.27,104.3114]
[1767571490618,0.57343887,134.37,134.27,104.3114]
[1767571490823,87.87343887,134.37,134.27,104.3114]
[1767571491416,87.87343887,134.37,134.31,0.05201376]
[1767571492024,87.89343887,134.37,134.31,0.05201376]
[1767571492226,0.04837802,134.35,134.27,6.7056]
[1767571492615,0.04837802,134.35,134.25,195.91431747]
[1767571492917,0.62181689,134.35,134.24,111.0447]
[1767571493117,0.57343887,134.35,134.24,6.7071]
[1767571493317,0.57343887,134.35,134.22,87.88]
[1767571493520,0.05399544,134.31,134.22,87.88]
[1767571493718,0.05399544,134.31,134.23,104.3438]
[1767571493915,0.57343887,134.35,134.23,104.3438]
[1767571494515,0.57343887,134.35,134.25,6.7069]
[1767571494729,0.57343887,134.35,134.23,108.09181747]
[1767571494929,0.57343887,134.35,134.22,192.2301]
[1767571495629,0.57343887,134.35,134.23,111.0517]
[1767571495831,87.91343887,134.35,134.24,104.3361]
[1767571496230,87.91343887,134.35,134.25,111.0351]
[1767571496423,0.57343887,134.35,134.25,111.0351]
[1767571497232,0.57343887,134.35,134.26,6.7059]
[1767571497819,0.57343887,134.35,134.24,6.7073]
[1767571499033,0.57343887,134.35,134.22,198.9383]
[1767571499529,0.57343887,134.34,134.24,6.7072]
[1767571499718,0.57343887,134.37,134.25,104.3275]
[1767571499920,107.97301747,134.39,134.25,104.3275]
[1767571499921,87.95343887,134.36,134.25,104.3275]
[1767571500121,87.95343887,134.36,134.24,104.3365]
[1767571500122,0.57343887,134.35,134.24,104.3365]
[1767571500721,0.60811082,134.38,134.28,104.3033]
[1767571500920,0.60811082,134.38,134.27,104.3081]
[1767571500921,0.60811082,134.38,134.27,87.94]
[1767571501130,0.60811082,134.38,134.28,6.7051]
[1767571501327,87.98811082,134.38,134.28,6.7051]
[1767571501527,0.60811082,134.37,134.27,87.94]
[1767571501727,0.60811082,134.37,134.27,94.6455]
[1767571502132,0.60811082,134.37,134.27,87.94]
[1767571502330,0.60811082,134.37,134.27,94.6456]
[1767571502630,0.60811082,134.37,134.24,104.3365]
[1767571502821,0.60811082,134.4,134.27,104.3139]
[1767571503024,0.60811082,134.38,134.27,104.3139]
[1767571503229,0.60811082,134.38,134.25,104.3266]
[1767571503735,0.60811082,134.36,134.26,6.7063]
[1767571504125,0.60811082,134.36,134.24,87.96]
[1767571504526,0.60811082,134.33,134.2,27.64313095]
[1767571504726,87.98811082,134.32,134.2,219.96643095]
[1767571504927,87.98811082,134.32,134.21,104.3602]
[1767571505440,87.98811082,134.32,134.2,219.96643095]
[1767571505734,0.60811082,134.31,134.2,115.60313095]
[1767571505924,0.60811082,134.3,134.2,122.31223095]
[1767571506743,0.60811082,134.27,134.16,104.3969]
[1767571506933,0.60811082,134.27,134.17,104.3877]
[1767571507530,0.60811082,134.26,134.15,87.96]
[1767571507835,0.60811082,134.23,134.09,104.4499]
[1767571508040,0.60811082,134.21,134.11,6.7138]
[1767571508533,7.31731082,134.21,134.09,94.6947]
[1767571508733,0.60811082,134.2,134.09,94.6947]
[1767571509130,0.60811082,134.2,134.06,104.4733]
[1767571509131,6.71,134.19,134.06,104.4733]
[1767571509434,0.60811082,134.18,134.08,104.4619]
[1767571509638,0.60811082,134.17,134.06,87.98]
[1767571509833,0.60811082,134.16,134.06,104.4773]
[1767571510030,88.02811082,134.16,134.05,104.4841]
[1767571510231,0.60811082,134.15,134.06,6.7163]
[1767571510436,0.60811082,134.18,134.07,104.4695]
[1767571510636,88.02811082,134.18,134.07,104.4695]
[1767571510841,0.60811082,134.18,134.08,104.4588]
[1767571511041,0.60811082,134.22,134.11,104.4384]
[1767571511335,88.02811082,134.22,134.12,111.1439]
[1767571511540,0.60811082,134.21,134.09,3.74801747]
[1767571511730,0.60811082,134.21,134.1,104.4454]
[1767571512526,0.60811082,134.24,134.13,6.7125]
[1767571512734,88.04811082,134.23,134.13,6.7125]
[1767571513044,88.04811082,134.23,134.08,192.4588]
[1767571513045,0.60811082,134.21,134.08,192.4588]
[1767571513934,0.60811082,134.21,134.1,104.442]
[1767571514240,87.46,134.22,134.11,104.4375]
[1767571514440,0.60811082,134.21,134.09,104.4541]
[1767571515237,0.60811082,134.21,134.08,192.4588]
[1767571515539,0.60811082,134.19,134.08,88.0]
[1767571515939,0.60811082,134.18,134.08,88.0]
[1767571516645,87.46,134.17,134.07,6.7155]
[1767571517342,88.06811082,134.17,134.07,6.7155]
[1767571517532,0.60811082,134.16,134.05,94.7568]
[1767571517731,0.60811082,134.16,134.05,6.7168]
[1767571518139,0.60811082,134.14,134.02,192.545]
[1767571518340,0.60811082,134.14,134.03,104.5009]
[1767571518743,0.60811082,134.14,134.07,0.05669427]
[1767571519545,0.60811082,134.13,134.07,0.05669427]
[1767571519740,0.60811082,134.13,134.02,6.7182]
[1767571520038,109.66651747,134.14,134.02,6.7182]
[1767571520039,0.60811082,134.11,134.02,6.7182]
[1767571520743,87.5,134.16,134.05,104.4823]
[1767571520940,88.10811082,134.16,134.05,104.4823]
[1767571521539,88.10811082,134.16,134.06,6.7161]
[1767571521740,0.60811082,134.15,134.04,88.06]
[1767571522142,104.3949,134.17,134.04,88.06]
[1767571522143,0.60811082,134.19,134.07,104.4691]
[1767571522447,0.60811082,134.19,134.08,104.4579]
[1767571522642,0.60811082,134.19,134.1,104.4462]
[1767571522949,0.60811082,134.19,134.09,104.4539]
[1767571523455,0.60811082,134.19,134.1,6.7142]
[1767571524058,0.60811082,134.19,134.09,104.4501]
[1767571524547,117.06710975,134.28,134.09,104.4501]
[1767571524548,0.60811082,134.25,134.13,104.4219]
[1767571524757,0.60811082,134.25,134.14,104.4152]
[1767571524758,88.12811082,134.25,134.14,104.4152]
[1767571525152,88.12811082,134.25,134.15,104.4069]
[1767571525350,0.60811082,134.29,134.16,104.3986]
[1767571525542,0.60811082,134.29,134.15,104.4069]
[1767571525543,0.60811082,134.28,134.15,104.4069]
[1767571525744,0.60811082,134.26,134.13,88.08]
[1767571525945,0.60811082,134.26,134.13,192.5003]
[1767571526261,7.31481082,134.26,134.14,104.4154]
[1767571526444,0.60811082,134.26,134.16,104.3985]
[1767571526660,0.60811082,134.26,134.16,104.3995]
[1767571527568,0.60811082,134.29,134.19,6.7096]
[1767571527777,87.52,134.28,134.19,6.7096]
[1767571528069,0.60811082,134.29,134.19,6.7096]
[1767571528267,0.60811082,134.29,134.2,6.7091]
[1767571529469,87.5,134.31,134.21,6.7085]
[1767571530065,94.81211082,134.31,134.19,6.7097]
[1767571530270,7.31211082,134.31,134.19,6.7097]
[1767571530572,94.81211082,134.31,134.19,6.7097]
[1767571530965,0.60811082,134.31,134.2,104.3646]
[1767571531577,0.60811082,134.31,134.2,111.0738]
[1767571531779,0.60811082,134.31,134.2,104.3646]
[1767571531965,0.60811082,134.31,134.21,104.3584]
[1767571532271,6.7021,134.35,134.23,6.7076]
[1767571532272,88.08481311,134.34,134.23,6.7076]
[1767571532478,0.58481311,134.33,134.21,104.3584]
[1767571532771,0.58481311,134.32,134.21,6.7087]
[1767571533073,0.58481311,134.32,134.22,104.3514]
[1767571533977,0.58481311,134.32,134.19,110.5075858]
[1767571534170,0.58481311,134.31,134.19,104.3757]
[1767571534571,0.58481311,134.3,134.2,6.7091]
[1767571534969,0.58481311,134.33,134.2,104.3659]
[1767571535172,0.58481311,134.32,134.2,6.7092]
[1767571535373,0.63360289,134.31,134.18,88.08]
[1767571535672,0.63360289,134.31,134.19,104.3757]
[1767571536070,0.63360289,134.31,134.18,88.08]
[1767571536974,0.63360289,134.29,134.18,88.08]
[1767571537175,88.11360289,134.29,134.18,88.08]
[1767571537378,88.11360289,134.32,134.19,104.3757]
[1767571537978,0.63360289,134.36,134.22,104.351]
[1767571538277,0.63360289,134.32,134.22,88.04]
[1767571538477,87.48,134.33,134.22,88.04]
[1767571538478,87.48,134.33,134.24,6.7069]
[1767571539774,88.11360289,134.33,134.22,94.7481]
[1767571539975,0.63360289,134.32,134.22,88.04]
[1767571540478,0.63360289,134.29,134.19,88.02]
[1767571540982,7.33870289,134.29,134.19,94.7297]
[1767571541577,0.63360289,134.29,134.2,6.7091]
[1767571542578,87.46,134.3,134.2,104.3657]
[1767571542769,87.46,134.34,134.23,104.3414]
[1767571542968,88.09360289,134.34,134.23,104.3414]
[1767571543376,0.63360289,134.34,134.23,104.3414]
[1767571543576,0.63360289,134.34,134.25,6.7065]
[1767571544568,0.63360289,134.34,134.26,6.7061]
[1767571545676,0.63360289,134.33,134.24,6.7071]
[1767571546079,87.46,134.35,134.23,104.3453]
[1767571546280,88.09360289,134.35,134.23,104.3453]
[1767571546480,7.33620289,134.34,134.25,6.7067]
[1767571548476,0.63360289,134.31,134.19,104.3761]
[1767571549182,88.09360289,134.3,134.19,104.3761]
[1767571549569,88.09360289,134.3,134.22,6.7079]
[1767571550179,88.09360289,134.3,134.2,104.3647]
[1767571550385,0.63360289,134.33,134.24,6.7073]
[1767571550879,7.33670289,134.33,134.24,6.7073]
[1767571551072,0.63360289,134.33,134.22,6.7081]
[1767571552181,0.63360289,134.31,134.2,6.7092]
[1767571552372,0.63360289,134.29,134.2,6.7092]
[1767571552781,0.63360289,134.29,134.19,104.3719]
[1767571553674,0.63360289,134.29,134.2,6.7091]
[1767571553872,0.63360289,134.29,134.17,192.4079]
[1767571554487,7.33890289,134.29,134.2,6.7092]
[1767571554682,0.63360289,134.29,134.18,104.3812]
[1767571556390,0.63360289,134.29,134.19,6.7095]
[1767571556579,88.09360289,134.29,134.19,6.7095]
[1767571556779,0.63360289,134.28,134.19,6.7095]
[1767571557376,0.63360289,134.28,134.13,104.4184]
[1767571557377,0.63360289,134.26,134.14,104.4143]
[1767571557582,0.63360289,134.26,134.15,104.4074]
[1767571558286,0.63360289,134.26,134.16,104.3977]
[1767571559279,0.63360289,134.26,134.14,110.5483858]
[1767571559280,7.34020289,134.26,134.14,110.5483858]
[1767571559589,7.34020289,134.26,134.14,104.4143]
[1767571560284,0.64414354,134.24,134.13,88.02]
[1767571560978,0.64414354,134.24,134.12,104.4265]
[1767571560979,0.64414354,134.23,134.1,192.4636]
[1767571561191,0.64414354,134.22,134.1,88.02]
[1767571561482,6.7096,134.2,134.1,88.02]
[1767571561687,0.64414354,134.2,134.09,6.7146]
[1767571561890,0.64414354,134.2,134.08,104.4592]